bitfinex/quotes_ETHUSD_20240917
["timestamp","ask_amount","ask_price","bid_price","bid_amount"]
[1726613666423,4.26405,2345.2,2344.8,0.0393691]
[1726613667464,4.26421,2345.1,2344.8,0.0393691]
[1726613669919,6.61705,2345.0,2344.8,0.0393691]
[1726613670144,7.8938225,2345.0,2344.8,0.0393691]
[1726613671876,8.52858,2345.1,2344.8,0.0393691]
[1726613673048,4.26421,2345.1,2344.8,2.3158691]
[1726613673258,8.52854,2345.1,2344.8,2.3158691]
[1726613673454,4.26421,2345.1,2344.8,2.3158691]
[1726613673638,6.61664,2345.2,2344.8,6.5806191]
[1726613673960,7.42,2345.5,2345.1,2.2765]
[1726613674160,0.44606632,2345.6,2345.3,4.26383]
[1726613674359,0.44606632,2345.6,2345.2,4.26398]
[1726613674675,4.26313,2345.7,2345.2,4.26398]
[1726613674858,4.2633,2345.6,2345.2,4.26398]
[1726613677258,4.26313,2345.7,2345.2,4.26398]
[1726613677259,8.52639,2345.7,2345.2,4.26398]
[1726613679068,4.26313,2345.7,2345.2,4.26398]
[1726613679670,8.52634,2345.7,2345.2,4.26398]
[1726613680561,4.2633,2345.6,2345.2,4.26398]
[1726613681302,8.52637,2345.7,2345.2,4.26394]
[1726613681484,4.26313,2345.7,2345.2,4.26394]
[1726613681662,8.52638,2345.7,2345.2,4.26394]
[1726613684064,4.26331,2345.6,2345.2,4.26394]
[1726613685681,4.26313,2345.7,2345.2,8.52785]
[1726613685886,10.30803476,2345.7,2345.2,4.26391]
[1726613686061,8.52634,2345.7,2345.2,4.26391]
[1726613686462,4.26313,2345.7,2345.2,4.26391]
[1726613686670,8.52639,2345.7,2345.2,4.26391]
[1726613686892,10.30803476,2345.7,2345.2,4.26391]
[1726613687660,4.26331,2345.6,2345.2,4.26391]
[1726613689597,8.52639,2345.7,2345.2,4.26391]
[1726613690503,8.52639,2345.7,2345.3,2.4413]
[1726613690817,10.94595042,2345.7,2345.3,2.4413]
[1726613691018,13.46449476,2345.9,2345.4,4.26357]
[1726613691197,17.72737476,2345.9,2345.5,2.4413]
[1726613691398,4.26294,2345.8,2345.5,2.4413]
[1726613693678,11.68283,2345.9,2345.5,2.4413]
[1726613693892,15.94569,2345.9,2345.5,2.4413]
[1726613694077,4.26296,2345.8,2345.5,2.4413]
[1726613700589,6.62866,2345.8,2345.5,2.4413]
[1726613700786,8.41030476,2345.8,2345.5,2.4413]
[1726613701016,6.62866,2345.8,2345.5,2.4413]
[1726613701231,4.26314,2345.7,2345.3,6.71994]
[1726613705901,4.26314,2345.7,2345.1,4.26404]
[1726613705902,3.66810974,2345.7,2345.1,2.2676]
[1726613706130,6.64752,2345.5,2345.1,2.2676]
[1726613706332,4.26369,2345.4,2345.1,2.2676]
[1726613706934,6.15040498,2345.3,2344.9,2.2676]
[1726613707113,4.26405,2345.2,2344.9,2.2676]
[1726613709028,6.04558476,2345.3,2344.9,2.2676]
[1726613709344,6.04558476,2345.3,2344.9,6.53215]
[1726613709515,4.26394,2345.3,2344.9,6.53215]
[1726613710502,6.04540476,2345.4,2344.9,7.61566591]
[1726613710739,4.26376,2345.4,2344.9,7.61566591]
[1726613710939,6.04540476,2345.4,2344.9,7.61566591]
[1726613711640,6.04540476,2345.4,2345.0,4.26438]
[1726613714422,6.04540476,2345.4,2345.1,2.4226]
[1726613718230,1.78164476,2345.3,2345.1,2.4226]
[1726613718867,4.26376,2345.4,2345.1,2.4226]
[1726613718868,6.04540476,2345.4,2345.1,2.4226]
[1726613719069,1.78164476,2345.3,2345.1,2.4226]
[1726613725540,6.04552476,2345.3,2345.1,2.4226]
[1726613725747,6.04552476,2345.3,2344.9,6.73846]
[1726613729108,4.26404,2345.2,2344.8,0.0393691]
[1726613729377,8.43806476,2345.1,2344.8,0.0393691]
[1726613729886,6.65642,2345.1,2344.8,0.0393691]
[1726613731042,8.43806476,2345.1,2344.8,0.0393691]
[1726613731258,6.65642,2345.1,2344.8,0.0393691]
[1726613731460,8.43806476,2345.1,2344.8,0.0393691]
[1726613731721,12.80780498,2344.9,2344.8,0.0393691]
[1726613731873,15.03881693,2344.9,2344.8,0.0393691]
[1726613733775,15.03556856,2344.9,2344.8,0.0393691]
[1726613734304,12.80780498,2344.9,2344.8,0.0393691]
[1726613735164,14.58911303,2344.9,2344.8,0.0393691]
[1726613735365,16.80837313,2344.9,2344.8,0.0393691]
[1726613760550,4.26457,2344.9,2344.8,2.5386691]
[1726613760716,6.4879158,2345.1,2344.8,2.5386691]
[1726613760913,4.26433,2345.1,2344.8,2.5386691]
[1726613761254,4.2643,2345.1,2344.8,2.5386691]
[1726613761550,4.2644,2345.0,2344.8,3.21903901]
[1726613765427,4.2644,2345.0,2344.8,2.5386691]
[1726613768770,4.2644,2345.0,2344.8,0.0393691]
[1726613772277,6.04570805,2345.0,2344.8,0.0393691]
[1726613780080,4.26457,2344.9,2344.8,0.0393691]
[1726613784863,6.04587805,2344.9,2344.8,0.0393691]
[1726613785192,4.26457,2344.9,2344.8,0.0393691]
[1726613786795,6.04587805,2344.9,2344.8,0.0393691]
[1726613799712,4.26457,2344.9,2344.8,0.0393691]
[1726613800316,6.49721408,2344.9,2344.8,0.0393691]
[1726613803394,4.26457,2344.9,2344.8,0.0393691]
[1726613803607,6.49863682,2344.9,2344.8,0.0393691]
[1726613805208,4.26457,2344.9,2344.8,0.0393691]
[1726613807219,8.52914,2344.9,2344.8,0.0393691]
[1726613807422,12.08254202,2344.9,2344.8,0.0393691]
[1726613820626,16.65147249,2344.9,2344.8,0.0393691]
[1726613820998,14.76500751,2344.9,2344.8,0.0393691]
[1726613825075,12.08254202,2344.9,2344.8,0.0393691]
[1726613829382,13.969007,2344.9,2344.8,0.0393691]
[1726613829584,16.65085911,2344.9,2344.8,0.0393691]
[1726613831965,16.65132749,2344.9,2344.8,0.0393691]
[1726613836675,13.969007,2344.9,2344.8,0.0393691]
[1726613836882,16.65048203,2344.9,2344.8,0.0393691]
[1726613841096,20.914514,2344.9,2344.8,0.0393691]
[1726613841398,18.783577,2344.9,2344.8,0.0393691]
[1726613841603,26.17592604,2344.9,2344.8,0.0393691]
[1726613841802,23.048147,2344.9,2344.8,0.0393691]
[1726613842982,18.783577,2344.9,2344.8,0.0393691]
[1726613843502,21.90907056,2344.9,2344.8,0.0393691]
[1726613845981,21.90810447,2344.9,2344.8,0.0393691]
[1726613850501,21.9072121,2344.9,2344.8,0.0393691]
[1726613854212,18.783577,2344.9,2344.8,0.0393691]
[1726613857408,19.22965513,2344.9,2344.8,0.0393691]
[1726613864925,22.35325967,2344.9,2344.8,0.0393691]
[1726613865123,19.22965513,2344.9,2344.8,0.0393691]
[1726613865425,22.35325967,2344.9,2344.8,0.0393691]
[1726613866565,20.46679469,2344.9,2344.8,0.0393691]
[1726613866760,22.35325967,2344.9,2344.8,0.0393691]
[1726613868155,20.46679469,2344.9,2344.8,0.0393691]
[1726613868356,19.22965513,2344.9,2344.8,0.0393691]
[1726613868564,22.35325967,2344.9,2344.8,0.0393691]
[1726613871561,19.22965513,2344.9,2344.8,0.0393691]
[1726613871768,22.35458285,2344.9,2344.8,0.0393691]
[1726613874066,22.35534894,2344.9,2344.8,0.0393691]
[1726613874268,19.22965513,2344.9,2344.8,0.0393691]
[1726613874828,22.35550555,2344.9,2344.8,0.0393691]
[1726613875441,19.22965513,2344.9,2344.8,0.0393691]
[1726613882458,22.92414405,2344.9,2344.8,0.0393691]
[1726613882775,19.22965513,2344.9,2344.8,0.0393691]
[1726613885582,22.92414405,2344.9,2344.8,0.0393691]
[1726613886877,27.18871405,2344.9,2344.8,0.0393691]
[1726613887176,23.49422513,2344.9,2344.8,0.0393691]
[1726613896778,27.19103413,2344.9,2344.8,0.0393691]
[1726613897141,24.13954772,2344.9,2344.8,0.0393691]
[1726613897337,25.80460218,2344.9,2344.8,0.0393691]
[1726613898235,24.13954772,2344.9,2344.8,0.0393691]
[1726613898443,23.49422513,2344.9,2344.8,0.0393691]
[1726613902483,24.13954772,2344.9,2344.8,0.0393691]
[1726613908511,19.82068274,2344.9,2344.8,0.0393691]
[1726613908711,21.06182513,2344.9,2344.8,0.0393691]
[1726613909086,24.75768733,2344.9,2344.8,0.0393691]
[1726613910487,24.75789492,2344.9,2344.8,0.0393691]
[1726613914185,24.75802616,2344.9,2344.8,0.0393691]
[1726613914391,21.06182513,2344.9,2344.8,0.0393691]
[1726613914592,24.75808829,2344.9,2344.8,0.0393691]
[1726613915882,21.06182513,2344.9,2344.8,0.0393691]
[1726613916432,24.7582475,2344.9,2344.8,0.0393691]
[1726613916917,21.06182513,2344.9,2344.8,0.0393691]
[1726613917918,24.7584239,2344.9,2344.8,0.0393691]
[1726613920074,21.06182513,2344.9,2344.8,0.0393691]
[1726613921305,24.75859926,2344.9,2344.8,0.0393691]
[1726613921676,20.49402926,2344.9,2344.8,0.0393691]
[1726613929653,20.49302493,2344.9,2344.8,0.0393691]
[1726613934442,20.49294073,2344.9,2344.8,0.0393691]
[1726613938810,20.49182151,2344.9,2344.8,0.0393691]
[1726613939221,20.4917888,2344.9,2344.8,0.0393691]
[1726613940558,16.79725513,2344.9,2344.8,0.0393691]
[1726613940760,15.67625311,2344.9,2344.8,0.0393691]
[1726613955682,19.37025828,2344.9,2344.8,0.0393691]
[1726613956784,15.67625311,2344.9,2344.8,0.0393691]
[1726613956984,19.37111262,2344.9,2344.8,0.0393691]
[1726613959260,16.93464764,2344.9,2344.8,0.0393691]
[1726613959595,15.12625311,2344.9,2344.8,2.4746691]
[1726613959794,18.25441821,2344.9,2344.8,2.4746691]
[1726613961102,13.98984821,2344.9,2344.8,2.4746691]
[1726613961398,10.41560498,2344.9,2344.8,2.72213601]
[1726613962201,13.09456971,2344.9,2344.8,2.72213601]
[1726613962494,10.41560498,2344.9,2344.8,2.72213601]
[1726613962862,13.09469792,2344.9,2344.8,2.72213601]
[1726613966164,8.52914,2344.9,2344.8,2.72213601]
[1726613968669,10.41560498,2344.9,2344.8,2.72213601]
[1726613969228,10.41560498,2344.9,2343.9,4.26637]
[1726613969229,2.3584,2344.1,2343.3,0.70729079]
[1726613969510,1.78412774,2343.5,2343.3,2.3910691]
[1726613969818,2.23052303,2343.7,2343.4,2.3517]
[1726613969819,1.78412774,2343.7,2343.4,2.3517]
[1726613970027,7.93764272,2343.6,2343.4,2.3517]
[1726613970316,7.93763272,2343.6,2343.4,2.3517]
[1726613971308,6.15350498,2343.6,2343.4,2.3517]
[1726613971807,6.15349498,2343.6,2343.4,2.3517]
[1726613972786,4.26703,2343.6,2343.4,2.59080691]
[1726613976197,8.5346,2343.4,2343.3,0.0393691]
[1726613976402,10.42106498,2343.4,2343.3,0.0393691]
[1726613976696,6.15376498,2343.4,2343.3,0.0393691]
[1726613977184,10.42106498,2343.4,2343.3,0.0393691]
[1726613980630,16.94826498,2343.4,2343.3,0.0393691]
[1726613980795,21.03232699,2343.4,2343.3,0.0393691]
[1726613981126,21.46976988,2343.4,2343.3,0.0393691]
[1726613981435,21.0239085,2343.4,2343.3,0.0393691]
[1726613981601,21.57391896,2343.4,2343.3,0.0393691]
[1726613983625,19.79819925,2343.4,2343.3,0.0393691]
[1726613986364,16.98829925,2343.4,2343.3,0.0393691]
[1726613988220,15.10183427,2343.4,2343.3,0.0393691]
[1726613988443,16.98829925,2343.4,2343.3,0.0393691]
[1726613989613,12.72099925,2343.4,2343.3,0.0393691]
[1726613990046,16.98829925,2343.4,2343.3,0.0393691]
[1726613990624,12.72099925,2343.4,2343.3,0.0393691]
[1726613991323,16.98829925,2343.4,2343.3,0.0393691]
[1726613994309,12.72099925,2343.4,2343.3,0.0393691]
[1726613994708,16.98829925,2343.4,2343.3,0.0393691]
[1726613995508,12.72099925,2343.4,2343.3,0.0393691]
[1726613995709,15.10183427,2343.4,2343.3,0.0393691]
[1726613996213,10.83453427,2343.4,2343.3,0.0393691]
[1726613997107,8.5346,2343.4,2343.3,0.0393691]
[1726613999505,4.26753,2343.3,2343.1,2.3657691]
[1726614001010,4.26766,2343.2,2343.1,2.3657691]
[1726614001181,4.26807,2343.0,2342.6,7.3081191]
[1726614001372,4.26807,2343.0,2342.6,4.92758551]
[1726614002369,4.26807,2343.0,2342.7,2.4554]
[1726614002623,4.26824,2342.9,2342.7,2.4554]
[1726614003384,4.26839,2342.8,2342.7,2.4554]
[1726614003977,4.26824,2342.9,2342.7,2.4554]
[1726614005117,4.26839,2342.8,2342.7,2.4554]
[1726614005495,4.26839,2342.8,2342.6,0.0393691]
[1726614005701,4.26857,2342.7,2342.6,0.0393691]
[1726614006234,8.53714,2342.7,2342.6,0.0393691]
[1726614006401,11.46596548,2342.7,2342.6,0.0393691]
[1726614007225,9.5795005,2342.7,2342.6,0.0393691]
[1726614013092,8.53714,2342.7,2342.6,0.0393691]
[1726614014415,10.42360498,2342.7,2342.6,0.0393691]
[1726614015118,14.69217498,2342.7,2342.6,0.0393691]
[1726614017751,27.29555,2342.7,2342.6,0.0393691]
[1726614018054,31.85089339,2342.7,2342.6,0.0393691]
[1726614018259,32.67847347,2342.7,2342.6,0.0393691]
[1726614018617,35.34577324,2342.7,2342.6,0.0393691]
[1726614018961,32.67847347,2342.7,2342.6,0.0393691]
[1726614019542,35.34491114,2342.7,2342.6,0.0393691]
[1726614019741,32.67847347,2342.7,2342.6,0.0393691]
[1726614019952,35.34481572,2342.7,2342.6,0.0393691]
[1726614020220,32.67847347,2342.7,2342.6,0.0393691]
[1726614020644,35.34398808,2342.7,2342.6,0.0393691]
[1726614021749,32.67847347,2342.7,2342.6,0.0393691]
[1726614022646,35.34344231,2342.7,2342.6,0.0393691]
[1726614023264,32.67847347,2342.7,2342.6,0.0393691]
[1726614023439,35.34291892,2342.7,2342.6,0.0393691]
[1726614023635,35.34291892,2342.7,2341.9,0.0393691]
[1726614023636,8.5397,2342.0,2341.9,0.0393691]
[1726614023934,19.38396593,2342.0,2341.9,0.0393691]
[1726614024564,17.60771498,2342.0,2341.9,0.0393691]
[1726614024740,19.38396593,2342.0,2341.9,0.0393691]
[1726614026636,8.54188,2341.4,2341.3,2.3485691]
[1726614027439,8.54226,2341.3,2341.2,0.0393691]
[1726614028888,4.27084,2341.5,2341.2,0.0393691]
[1726614029052,4.27069,2341.6,2341.2,0.0393691]
[1726614029468,8.54111,2341.7,2341.2,0.0393691]
[1726614029679,4.27054,2341.7,2341.3,2.4335]
[1726614029882,4.27059,2341.6,2341.3,3.10791491]
[1726614030189,8.54108,2341.7,2341.4,2.2574]
[1726614030393,4.27063,2341.6,2341.4,2.2574]
[1726614030556,4.27054,2341.7,2341.4,2.2574]
[1726614031986,4.27059,2341.6,2341.4,2.2574]
[1726614033192,4.27039,2341.8,2341.4,2.2574]
[1726614033361,4.27051,2341.7,2341.4,2.2574]
[1726614033765,4.27067,2341.6,2341.4,2.2574]
[1726614034854,4.27051,2341.7,2341.4,2.2574]
[1726614035091,8.54108,2341.7,2341.4,2.2574]
[1726614036358,4.27051,2341.7,2341.4,2.2574]
[1726614036990,4.27059,2341.6,2341.4,2.2574]
[1726614037302,4.27051,2341.7,2341.4,2.2574]
[1726614037471,8.54102,2341.7,2341.4,2.2574]
[1726614037673,4.27051,2341.7,2341.4,2.2574]
[1726614037874,8.54102,2341.7,2341.4,2.2574]
[1726614038073,4.27051,2341.7,2341.4,2.2574]
[1726614038559,8.54101,2341.7,2341.4,2.2574]
[1726614038812,8.541,2341.7,2341.4,2.2574]
[1726614039474,4.2705,2341.7,2341.4,2.2574]
[1726614039679,8.541,2341.7,2341.4,3.4087504]
[1726614040306,4.2705,2341.7,2341.4,3.4087504]
[1726614042274,8.54099,2341.7,2341.4,3.4087504]
[1726614042481,8.54105,2341.7,2341.4,3.4087504]
[1726614042807,8.54105,2341.7,2341.4,2.2574]
[1726614042970,4.27049,2341.7,2341.4,2.2574]
[1726614043374,8.54098,2341.7,2341.4,2.2574]
[1726614043702,4.27049,2341.7,2341.4,2.2574]
[1726614043883,4.27049,2341.7,2341.4,2.91418791]
[1726614045612,8.54098,2341.7,2341.4,2.91418791]
[1726614045775,4.27049,2341.7,2341.4,2.91418791]
[1726614049168,4.27058,2341.6,2341.4,2.91418791]
[1726614049370,4.27058,2341.6,2341.4,2.2574]
[1726614050413,4.27049,2341.7,2341.4,2.2574]
[1726614051916,4.2706,2341.6,2341.4,2.2574]
[1726614060294,4.2706,2341.6,2341.2,4.3106491]
[1726614060295,4.27076,2341.5,2341.2,2.3168691]
[1726614060549,4.27076,2341.5,2341.2,0.0393691]
[1726614060550,4.27113,2341.3,2341.2,0.0393691]
[1726614061505,8.54226,2341.3,2341.2,0.0393691]
[1726614062122,6.04730095,2341.4,2341.2,2.5174691]
[1726614062331,4.27113,2341.3,2341.2,2.5174691]
[1726614064647,6.04727095,2341.4,2341.2,2.5174691]
[1726614066061,10.31838095,2341.4,2341.2,2.5174691]
[1726614066653,6.04727095,2341.4,2341.2,2.5174691]
[1726614066859,8.54209,2341.4,2341.2,2.5174691]
[1726614067164,4.27113,2341.3,2341.2,2.5174691]
[1726614067549,6.04727095,2341.4,2341.2,2.5174691]
[1726614067730,10.31834095,2341.4,2341.2,2.5174691]
[1726614068644,4.27113,2341.3,2341.2,0.0393691]
[1726614069047,13.97785093,2341.3,2341.2,0.0393691]
[1726614069335,16.31963613,2341.3,2341.2,0.0393691]
[1726614069543,18.91776732,2341.3,2341.2,0.0393691]
[1726614069843,21.58536589,2341.3,2341.2,0.0393691]
[1726614070265,18.91776732,2341.3,2341.2,0.0393691]
[1726614070462,21.58781881,2341.3,2341.2,0.0393691]
[1726614071162,21.58770003,2341.3,2341.2,0.0393691]
[1726614071364,17.31657003,2341.3,2341.2,0.0393691]
[1726614072030,14.64663732,2341.3,2341.2,0.0393691]
[1726614073133,12.75159998,2341.3,2341.2,0.0393691]
[1726614073284,12.20159998,2341.3,2341.2,0.0393691]
[1726614073636,14.42466208,2341.3,2341.2,0.0393691]
[1726614074142,12.75159998,2341.3,2341.2,0.0393691]
[1726614076486,14.97348201,2341.3,2341.2,0.0393691]
[1726614080457,14.97262877,2341.3,2341.2,0.0393691]
[1726614081089,14.52835787,2341.3,2341.2,0.0393691]
[1726614081257,14.97262877,2341.3,2341.2,0.0393691]
[1726614081586,11.57307926,2341.3,2341.2,0.0393691]
[1726614083778,9.79639998,2341.3,2341.2,0.0393691]
[1726614084859,1.77667928,2341.4,2341.2,2.4632691]
[1726614085192,2.667594,2341.5,2341.2,2.4632691]
[1726614085193,0.44656521,2341.5,2341.3,2.4239]
[1726614085401,4.27066,2341.6,2341.3,2.4239]
[1726614086200,8.54135,2341.6,2341.3,2.4239]
[1726614086493,4.27066,2341.6,2341.3,2.4239]
[1726614086705,8.54135,2341.6,2341.3,2.4239]
[1726614086997,4.27066,2341.6,2341.3,2.4239]
[1726614087195,10.31724928,2341.8,2341.5,2.4239]
[1726614087355,4.27023,2341.8,2341.5,2.4239]
[1726614088697,8.54058,2341.8,2341.5,2.4239]
[1726614089001,8.54059,2341.8,2341.5,2.4239]
[1726614090273,4.27043,2341.7,2341.5,2.4239]
[1726614093122,8.541,2341.7,2341.5,2.4239]
[1726614095386,4.27043,2341.7,2341.5,2.4239]
[1726614095731,4.27058,2341.6,2341.5,2.4239]
[1726614095889,4.27043,2341.7,2341.5,2.4239]
[1726614096691,8.54095,2341.7,2341.5,2.4239]
[1726614096926,4.27043,2341.7,2341.5,2.4239]
[1726614097493,8.54095,2341.7,2341.5,2.4239]
[1726614098036,4.27058,2341.6,2341.5,2.4239]
[1726614099843,8.54092,2341.7,2341.5,2.4239]
[1726614100040,1.77667928,2341.9,2341.5,2.4239]
[1726614100241,4.27023,2341.8,2341.5,3.093402]
[1726614102305,8.54054,2341.8,2341.5,3.093402]
[1726614102514,4.27023,2341.8,2341.5,2.4239]
[1726614103034,4.27,2342.0,2341.5,2.4239]
[1726614103452,4.27031,2341.8,2341.5,2.4239]
[1726614103618,8.54061,2341.8,2341.5,2.4239]
[1726614106217,4.2704,2341.7,2341.5,2.4239]
[1726614109624,4.27018,2341.9,2341.5,2.4239]
[1726614109828,4.27036,2341.8,2341.5,2.4239]
[1726614110436,4.27042,2341.7,2341.5,2.4239]
[1726614111631,8.54067,2341.8,2341.5,2.4239]
[1726614112065,4.2704,2341.7,2341.5,2.4239]
[1726614115260,4.27031,2341.8,2341.5,2.4239]
[1726614115665,4.27044,2341.7,2341.5,2.4239]
[1726614120029,4.27058,2341.6,2341.5,2.4239]
[1726614120749,5.124669,2341.6,2341.3,2.3288]
[1726614120944,4.27058,2341.6,2341.3,2.3288]
[1726614122569,2.4843,2342.0,2341.3,2.3288]
[1726614122733,4.27033,2341.8,2341.3,6.59981]
[1726614122937,4.27033,2341.8,2341.4,2.2806]
[1726614123134,4.27041,2341.7,2341.4,2.2806]
[1726614123580,4.27033,2341.8,2341.4,2.2806]
[1726614123867,8.54066,2341.8,2341.4,2.2806]
[1726614124173,4.27033,2341.8,2341.4,2.2806]
[1726614124329,8.54065,2341.8,2341.4,2.2806]
[1726614124538,4.27032,2341.8,2341.4,2.2806]
[1726614124966,4.27113,2341.3,2341.2,2.3999691]
[1726614125280,4.27113,2341.3,2341.2,0.0393691]
[1726614125281,10.95526,2341.3,2341.2,0.0393691]
[1726614125476,4.27113,2341.3,2341.2,0.0393691]
[1726614128638,11.02386,2341.3,2341.2,0.0393691]
[1726614128839,12.49341766,2341.3,2341.2,0.0393691]
[1726614132042,14.388455,2341.3,2341.2,0.0393691]
[1726614132242,20.44176118,2341.3,2341.2,0.0393691]
[1726614132586,14.27558559,2341.3,2341.2,0.0393691]
[1726614135801,18.54671559,2341.3,2341.2,0.0393691]
[1726614136885,18.99116285,2341.3,2341.2,0.0393691]
[1726614137406,18.54495809,2341.3,2341.2,0.0393691]
[1726614138366,16.76454766,2341.3,2341.2,0.0393691]
[1726614138987,18.659585,2341.3,2341.2,0.0393691]
[1726614139192,20.88620019,2341.3,2341.2,0.0393691]
[1726614140397,20.43902246,2341.3,2341.2,0.0393691]
[1726614140598,20.43896043,2341.3,2341.2,0.0393691]
[1726614141009,18.659585,2341.3,2341.2,0.0393691]
[1726614141177,20.8837914,2341.3,2341.2,0.0393691]
[1726614141500,20.43842462,2341.3,2341.2,0.0393691]
[1726614141703,20.43832298,2341.3,2341.2,0.0393691]
[1726614146418,18.659585,2341.3,2341.2,0.0393691]
[1726614149630,20.43832298,2341.3,2341.2,0.0393691]
[1726614150449,20.88145285,2341.3,2341.2,0.0393691]
[1726614150738,23.480715,2341.3,2341.2,0.0393691]
[1726614151229,26.14695642,2341.3,2341.2,0.0393691]
[1726614152146,33.86341063,2341.3,2341.2,0.0393691]
[1726614152457,31.1982215,2341.3,2341.2,0.0393691]
[1726614153314,33.86236614,2341.3,2341.2,0.0393691]
[1726614154538,33.86208946,2341.3,2341.2,0.0393691]
[1726614155530,25.03205416,2341.3,2341.2,0.0393691]
[1726614155737,26.3770915,2341.3,2341.2,0.0393691]
[1726614157961,26.9270915,2341.3,2341.2,0.0393691]
[1726614159457,29.59059606,2341.3,2341.2,0.0393691]
[1726614160876,27.69555872,2341.3,2341.2,0.0393691]
[1726614161035,29.59059606,2341.3,2341.2,0.0393691]
[1726614161229,26.9270915,2341.3,2341.2,0.0393691]
[1726614161767,29.59059606,2341.3,2341.2,0.0393691]
[1726614162373,26.9270915,2341.3,2341.2,0.0393691]
[1726614162663,25.31946606,2341.3,2341.2,0.0393691]
[1726614162970,29.59059606,2341.3,2341.2,0.0393691]
[1726614163320,26.9270915,2341.3,2341.2,0.0393691]
[1726614163568,29.59059606,2341.3,2341.2,0.0393691]
[1726614163753,29.59107195,2341.3,2341.2,0.0393691]
[1726614166850,26.9270915,2341.3,2341.2,0.0393691]
[1726614167599,29.59184217,2341.3,2341.2,0.0393691]
[1726614168202,26.9270915,2341.3,2341.2,0.0393691]
[1726614174398,30.03863363,2341.3,2341.2,0.0393691]
[1726614175572,26.9270915,2341.3,2341.2,0.0393691]
[1726614179231,28.59667229,2341.3,2341.2,0.0393691]
[1726614180335,31.70965044,2341.3,2341.2,0.0393691]
[1726614182020,31.71081335,2341.3,2341.2,0.0393691]
[1726614183241,7.38747212,2341.3,2341.2,2.3577691]
[1726614183440,6.49646757,2341.3,2341.2,2.3577691]
[1726614183658,4.27113,2341.3,2341.2,2.3577691]
[1726614184178,8.54226,2341.3,2341.2,2.3577691]
[1726614184465,4.27113,2341.3,2341.2,2.3577691]
[1726614184769,4.27104,2341.4,2341.2,2.59354601]
[1726614185935,4.27113,2341.3,2341.2,2.59354601]
[1726614187883,4.27104,2341.4,2341.2,2.59354601]
[1726614188088,4.2707,2341.6,2341.2,2.59354601]
[1726614188373,0.44630162,2341.7,2341.3,4.43955517]
[1726614188537,4.27042,2341.7,2341.5,2.4591]
[1726614189344,4.27058,2341.6,2341.5,2.4591]
[1726614190472,4.27042,2341.7,2341.5,2.4591]
[1726614190945,8.54094,2341.7,2341.5,2.4591]
[1726614191177,8.54094,2341.7,2341.5,2.70501]
[1726614191690,4.27058,2341.6,2341.5,2.4591]
[1726614191845,4.27103,2341.4,2341.3,2.2869]
[1726614197552,4.27071,2341.6,2341.3,2.2869]
[1726614198351,8.54141,2341.6,2341.3,2.2869]
[1726614198553,4.2707,2341.6,2341.5,2.3838]
[1726614202082,8.54138,2341.6,2341.5,2.3838]
[1726614202763,4.2709,2341.5,2341.3,2.4396]
[1726614207330,4.27094,2341.4,2341.3,2.4396]
[1726614221041,4.27094,2341.4,2341.2,0.0393691]
[1726614221201,8.8521895,2341.8,2341.3,2.2902]
[1726614221406,4.27062,2341.6,2341.3,2.2902]
[1726614221642,4.27059,2341.6,2341.3,2.2902]
[1726614223745,4.27058,2341.7,2341.3,6.56132]
[1726614224044,4.2706,2341.6,2341.4,0.6833646]
[1726614224249,4.2706,2341.6,2341.3,2.2902]
[1726614227548,6.49618918,2341.7,2341.3,2.2902]
[1726614229228,4.27059,2341.6,2341.3,2.2902]
[1726614229424,6.49629918,2341.6,2341.3,2.2902]
[1726614232863,6.50121056,2341.6,2341.3,2.2902]
[1726614233163,6.50121056,2341.6,2341.3,3.4007206]
[1726614234565,4.27059,2341.6,2341.3,3.4007206]
[1726614235567,6.50121056,2341.6,2341.3,3.4007206]
[1726614236445,4.27059,2341.6,2341.3,3.4007206]
[1726614236624,4.27078,2341.5,2341.3,2.2902]
[1726614238708,4.27078,2341.5,2341.2,0.27232601]
[1726614238709,4.27078,2341.5,2341.2,2.3791691]
[1726614243964,4.27113,2341.3,2341.2,0.0393691]
[1726614244188,7.58797646,2341.3,2341.2,0.0393691]
[1726614247972,5.357148,2341.3,2341.2,0.0393691]
[1726614248270,4.27113,2341.3,2341.2,0.0393691]
[1726614257466,6.50258581,2341.3,2341.2,0.0393691]
[1726614257672,4.27113,2341.3,2341.2,0.0393691]
[1726614258195,6.50258581,2341.3,2341.2,0.0393691]
[1726614259880,6.50308156,2341.3,2341.2,0.0393691]
[1726614260667,10.77421156,2341.3,2341.2,0.0393691]
[1726614260875,18.46506794,2341.3,2341.2,0.0393691]
[1726614261070,21.14340981,2341.3,2341.2,0.0393691]
[1726614261318,18.46506794,2341.3,2341.2,0.0393691]
[1726614262412,21.14158501,2341.3,2341.2,0.0393691]
[1726614263840,18.46506794,2341.3,2341.2,0.0393691]
[1726614264510,21.1403497,2341.3,2341.2,0.0393691]
[1726614266519,21.13977101,2341.3,2341.2,0.0393691]
[1726614267099,18.46506794,2341.3,2341.2,0.0393691]
[1726614267307,21.13977101,2341.3,2341.2,0.0393691]
[1726614267486,25.41090101,2341.3,2341.2,0.0393691]
[1726614267676,25.40995884,2341.3,2341.2,0.0393691]
[1726614267876,22.73619794,2341.3,2341.2,0.0393691]
[1726614269079,19.24263615,2341.3,2341.2,0.0393691]
[1726614269285,21.13808293,2341.3,2341.2,0.0393691]
[1726614273856,21.1349537,2341.3,2341.2,0.0393691]
[1726614274160,21.1349625,2341.3,2341.2,0.0393691]
[1726614275564,25.9560925,2341.3,2341.2,0.0393691]
[1726614276010,25.4060925,2341.3,2341.2,0.0393691]
[1726614277358,21.1349625,2341.3,2341.2,0.0393691]
[1726614277510,18.46506794,2341.3,2341.2,0.0393691]
[1726614277853,21.1349625,2341.3,2341.2,0.0393691]
[1726614278426,21.13558778,2341.3,2341.2,0.0393691]
[1726614279248,21.58199201,2341.3,2341.2,0.0393691]
[1726614281540,23.18260217,2341.3,2341.2,0.0393691]
[1726614281940,18.91147217,2341.3,2341.2,0.0393691]
[1726614282250,26.73260217,2341.3,2341.2,0.0393691]
[1726614286955,29.84969712,2341.3,2341.2,0.0393691]
[1726614287346,31.52231754,2341.3,2341.2,0.0393691]
[1726614287973,31.52193667,2341.3,2341.2,0.0393691]
[1726614292978,31.52206441,2341.3,2341.2,0.0393691]
[1726614293180,32.67635259,2341.3,2341.2,0.0393691]
[1726614293479,33.3213099,2341.3,2341.2,0.0393691]
[1726614296982,33.32129131,2341.3,2341.2,0.0393691]
[1726614298470,37.00307753,2341.3,2341.2,0.0393691]
[1726614299002,37.00307753,2341.3,2340.5,0.0393691]